Cogmind - Beta 15 @@@ ROGUE MODE // 2025.05.17 @ 20:03:55 Player: Rubbe Result: Destroyed by AL-1UZ(R) with Subdweller Machine Gun Performance ------------- Evolutions (0) 0 Regions Visited (3) 600 Robots Destroyed (11) 55 Value Destroyed (347) 347 Prototype IDs (0) 0 Alien Tech Used (0) 0 Bonus (0) 0 TOTAL SCORE: 1002 Bonus ------- None Cogmind --------- Core Integrity 0/250 Matter 160/300 Energy 200/200 System Corruption 0% Temperature Cool (0) Movement Core (200) Ox3 Location -10/Subcaves Parts ------- > --- POWER (1) -------- Subdweller Power Source > --- PROPULSION (2) --- (None) > --- UTILITY (2) ------ Small Storage Unit Utility Shielding > --- WEAPON (2) ------- Light Assault Rifle > --- INVENTORY (8) ---- Light Ion Engine Light Ion Engine Sensor Array ECM Suite Subdweller Laser Subdweller Laser Mining Laser Peak State ------------ > --- POWER ------------ Ion Engine > --- PROPULSION ------- Light Treads Light Treads > --- UTILITY ---------- Small Storage Unit Utility Shielding > --- WEAPON ----------- Small Laser Assault Rifle > --- INVENTORY -------- Light Ion Engine Light Assault Rifle Grenade Launcher [Rating: 7] Favorites ----------- Power Ion Engine Engine Ion Engine Propulsion Light Treads Treads Light Treads Utility Small Storage Unit Storage Small Storage Unit Protection Utility Shielding Weapon Small Laser Energy Gun Small Laser Ballistic Gun Assault Rifle Launcher Grenade Launcher Build | -11 -10 -10 -10 ------- Run | Yrd Mat Min Sub Slots Evolved . | . . . . Power . | . . . . Propulsion . | . . . . Utility . | . . . . Weapon . | . . . . Parts Attached 13 | 6 1 2 4 Power 4 | 1 . 1 2 Engine 4 | 1 . 1 2 Core . | . . . . Reactor . | . . . . Propulsion 2 | 2 . . . Treads 2 | 2 . . . Leg . | . . . . Wheel . | . . . . Hover . | . . . . Flight . | . . . . Utility 2 | 1 1 . . Device . | . . . . Storage 1 | 1 . . . Processor . | . . . . Hackware . | . . . . Protection 1 | . 1 . . Artifact . | . . . . Weapon 5 | 2 . 1 2 Energy Gun 2 | 1 . . 1 Energy Cannon . | . . . . Ballistic Gun 2 | 1 . . 1 Ballistic Cannon . | . . . . Launcher 1 | . . 1 . Special Weapon . | . . . . Impact Weapon . | . . . . Slashing Weapon . | . . . . Piercing Weapon . | . . . . Special Melee Weapon . | . . . . Unidentified Prototypes . | . . . . Parts Lost 7 | . . . 7 Power 1 | . . . 1 Propulsion 2 | . . . 2 Utility . | . . . . Weapon 4 | . . . 4 Highest Loss Streak 2 | . . . 2 To Critical Strikes . | . . . . Average Backups 4 | 1 2 4 5 Power 1 | . 1 1 1 Propulsion . | . . . . Utility . | . . . 1 Weapon 2 | . 1 2 3 Tool/Special . | . . . . Unused Backups 7 | . . . 7 Power 1 | . . . 1 Propulsion . | . . . . Utility 3 | . . . 3 Weapon 3 | . . . 3 Tool/Special . | . . . . Average Slot Usage (%) 91 | . 88 100 85 Engine 13 | . 14 14 13 Treads 21 | . 28 28 16 Storage 14 | . 14 14 14 Protection 13 | . 3 14 14 Energy Gun 12 | . 14 13 11 Ballistic Gun 12 | . 14 14 10 Launcher 2 | . . . 3 Peak Build Rating 7 | 6 7 7 7 Average Rating 6 | 4 6 7 6 On Entrance 5 | . 6 7 7 Naked Turns . | . . . . Heaviest Build 16 | 13 14 16 15 Greatest Support 40 | 40 40 40 40 Greatest Overweight (x) 4 | . . . 4 Average Overweight (x) . | . . . . Largest Inventory Capacity 8 | 8 8 8 8 Average Capacity 7 | 6 8 8 8 Most Carried 8 | 3 4 6 8 Average Carried 4 | 1 2 4 6 Final Capacity 8 | 8 8 8 8 Final Carried 7 | 2 3 6 7 Class Distribution -------------------- 100% | Mutant Dominant Class ---------------- Mutant | -10/Materials Mutant | -10/Mines Mutant | -10/Subcaves Resources | -11 -10 -10 -10 ----------- Run | Yrd Mat Min Sub Matter Collected 309 | 117 . 65 127 Remotely . | . . . . Salvage Created 268 | . . 123 145 Parts 16 | . . 6 10 Haulers Intercepted . | . . . . Recyclers Shooed . | . . . . Parts Field Recycled . | . . . . Retrieved Matter . | . . . . Parts Self-Destructed 14 | . . . 14 Prevented . | . . . . Kills | -11 -10 -10 -10 ------- Run | Yrd Mat Min Sub Combat Hostiles Destroyed 8 | . . 2 6 Guns 2 | . . . 2 AOE 6 | . . 2 4 Classes Destroyed 6 | . . 2 4 Recycler 1 | . . 1 . Turret 2 | . . . 2 Swarmer 4 | . . . 4 Grunt 2 | . . 2 . Artisan 1 | . . . 1 Subdweller 2 | . . . 2 Best Kill Streak 4 | . . 2 4 Combat Bots Only 4 | . . 2 4 Max Kills in Single Turn 4 | . . 2 4 Gunslinging . | . . . . Exploded 3 | . . 2 3 Melee . | . . . . Uniques/NPCs Destroyed . | . . . . Combat | -11 -10 -10 -10 -------- Run | Yrd Mat Min Sub Hostile Shots Fired 150 | . . 4 146 Missed 60 | . . 1 59 Hits 90 | . . 3 87 Projectile 90 | . . 3 87 Damage Taken 1100 | . . 144 956 Core 251 | . . . 251 Absorbed by Shields . | . . . . Redirected to Shielding 28 | . . 3 25 Core Remaining (%) 100 | 100 . . . Volleys Fired 32 | . . 3 29 Largest 2 | . . 2 2 Hottest 70 | . . 60 70 Shots Fired 47 | . . 6 41 Gun 37 | . . 5 32 Cannon . | . . . . Launcher 10 | . . 1 9 Special . | . . . . Kinetic 12 | . . 3 9 Thermal 15 | . . 2 13 Explosive 10 | . . 1 9 Electromagnetic 10 | . . . 10 Robot Hit Streak 12 | . . 1 12 Robot Miss Streak 3 | . . 2 3 Penetration Max . | . . . . Secondary Targets . | . . . . Shots Hit Robots 24 | . . 2 22 Core Hits 24 | . . 5 19 Critical Kills . | . . . . Critical Parts Destroyed . | . . . . Critical Strikes . | . . . . Melee Attacks . | . . . . Impact . | . . . . Slashing . | . . . . Piercing . | . . . . Sneak Attacks . | . . . . Combat Hostiles . | . . . . Follow-up Attacks . | . . . . Damage Inflicted 768 | . . 115 653 Guns 325 | . . 21 304 Cannons . | . . . . Explosions 443 | . . 94 349 Melee . | . . . . Ramming . | . . . . Kinetic 105 | . . 21 84 Thermal 233 | . . 82 151 Explosive 289 | . . 12 277 Electromagnetic 141 | . . . 141 Impact . | . . . . Slashing . | . . . . Piercing . | . . . . Highest Corruption . | . . . . Average Corruption . | . . . . Corruption Purged . | . . . . Corruption Blocked . | . . . . Overload Shots . | . . . . Overflow Damage . | . . . . Projectiles . | . . . . Explosions . | . . . . Melee . | . . . . Knockbacks . | . . . . Impact . | . . . . Kinetic . | . . . . Secondary . | . . . . Self-Inflicted Damage 111 | . . 111 . Shots 4 | . . 4 . Rammed . | . . . . Targets Rammed . | . . . . Kicked . | . . . . Crushed . | . . . . Highest Temperature 32 | . . 32 13 Average Temperature 17 | . . 22 11 Received Heat Transfer 486 | . . 18 468 Siege Activations . | . . . . Martial Activations . | . . . . Shielding Activations . | . . . . Robots Disrupted . | . . . . Combat Hostiles . | . . . . Robots Corrupted . | . . . . Combat Hostiles . | . . . . Parts Fried . | . . . . Impact Corruptions . | . . . . Robots Melted . | . . . . Combat Hostiles . | . . . . Parts Melted . | . . . . Heat Transferred 275 | . . 100 175 Parts Sabotaged . | . . . . Parts Stolen . | . . . . Parts Stripped . | . . . . Power Chain Reactions 1 | . . . 1 Alert | -11 -10 -10 -10 ------- Run | Yrd Mat Min Sub Maximum Alert Level . | . . . . Low Security (%) 100 | 100 100 100 . Level 1 . | . . . . Level 2 . | . . . . Level 3 . | . . . . Level 4 . | . . . . Level 5 . | . . . . High Security . | . . . . Max Security . | . . . . Peak Influence 198 | . . 198 . Initial . | . . . . Average 44 | . . 58 . Influence Increases 428 | . . 203 225 Destroy 0b10 Robot/C 160 | . . 40 120 Destroy 0b10 Robot/NC 5 | . . 5 . Destroy Leader 10 | . . 10 . Disable Machine 120 | . . 120 . Destroy Structure 28 | . . 28 . Lose Combat Pursuer 105 | . . . 105 Influence Decreases 428 | . . 203 225 Time Decay 368 | . . 203 165 Lost Part 60 | . . . 60 Squads Dispatched . | . . . . Investigation . | . . . . Extermination . | . . . . Reinforcement . | . . . . Assault . | . . . . Garrison . | . . . . Intercept . | . . . . Searches Triggered . | . . . . Construction Impeded . | . . . . Haulers Reinforced . | . . . . Active Scanning Responses . | . . . . Cargo Convoy Interrupts . | . . . . Stealth | -11 -10 -10 -10 --------- Run | Yrd Mat Min Sub Distress Signals . | . . . . Communications Jammed . | . . . . Distress Signals . | . . . . Times Spotted 14 | . . 2 12 Peak Tracking Total 6 | . . 2 6 Tactical Retreats 2 | . . . 2 Traps | -11 -10 -10 -10 ------- Run | Yrd Mat Min Sub Traps Triggered . | . . . . Indirectly . | . . . . Trap Hack Attempts . | . . . . Triggered . | . . . . Disarmed . | . . . . Reprogrammed . | . . . . Reused . | . . . . Traps Extracted . | . . . . Installed . | . . . . Triggered . | . . . . Machines | -11 -10 -10 -10 ---------- Run | Yrd Mat Min Sub Machines Disabled 12 | . . 8 4 Max in Single Turn 8 | . . 8 3 Machines Repaired . | . . . . Machines Dismantled . | . . . . Machines Sabotaged . | . . . . Overloaded Fab Kills . | . . . . Hacking | -11 -10 -10 -10 --------- Run | Yrd Mat Min Sub Machines Accessed 2 | . 2 . . Terminals 2 | . 2 . . Fabricators . | . . . . Repair Stations . | . . . . Recycling Units . | . . . . Scanalyzers . | . . . . Garrison Access . | . . . . Total Hacks 6 | . 6 . . Successful 1 | . 1 . . Failed 5 | . 5 . . Catastrophic 1 | . 1 . . Database Lockouts . | . . . . Manual . | . . . . Terminals 6 | . 6 . . Fabricators . | . . . . Repair Stations . | . . . . Recycling Units . | . . . . Scanalyzers . | . . . . Garrison Access . | . . . . Terminal Hacks 1 | . 1 . . Zone Layout 1 | . 1 . . Fabricator Hacks . | . . . . Repair Station Hacks . | . . . . Recycling Unit Hacks . | . . . . Scanalyzer . | . . . . Garrison Access Hacks . | . . . . Unauthorized Hacks . | . . . . Terminals . | . . . . Fabricators . | . . . . Repair Stations . | . . . . Recycling Units . | . . . . Scanalyzers . | . . . . Garrison Access . | . . . . Data Cores Recovered . | . . . . Used . | . . . . Hacking Detections 2 | . 2 . . Full Trace Events 2 | . 2 . . Feedback Events . | . . . . Feedback Blocked . | . . . . Robot Schematics Acquired . | . . . . Robots Built . | . . . . Authchips . | . . . . Time . | . . . . Total Robot Build Rating . | . . . . Part Schematics Acquired . | . . . . Parts Built . | . . . . Authchips . | . . . . Time . | . . . . Total Part Build Rating . | . . . . Parts Repaired . | . . . . Time . | . . . . Parts Recycled . | . . . . Recycled Matter . | . . . . Retrieved Matter . | . . . . Retrieved Components . | . . . . Parts Scanalyzed . | . . . . Part Schematics Acquired . | . . . . Parts Damaged . | . . . . Bothacking | -11 -10 -10 -10 ------------ Run | Yrd Mat Min Sub Used RIF Installer . | . . . . Robots Hacked . | . . . . Non-combat . | . . . . Combat . | . . . . Robot Hacks Applied . | . . . . Relay Couplers Released . | . . . . Fabnet Peak Effective % . | . . . . Robots Rewired . | . . . . Allies Hacked . | . . . . Hacks Repelled . | . . . . Allies | -11 -10 -10 -10 -------- Run | Yrd Mat Min Sub Total Allies 1 | . . 1 . Largest Group 1 | . . 1 1 Highest-Rated Group 31 | . . 31 31 Highest-Rated Ally 31 | . . 31 31 Total Orders . | . . . . Ally Attacks . | . . . . Total Damage . | . . . . Kills . | . . . . Allies Corrupted . | . . . . Allies Melted . | . . . . Intel | -11 -10 -10 -10 ------- Run | Yrd Mat Min Sub Active Infowar (turns) . | . . . . Robot Analysis Total . | . . . . Derelict Logs Recovered 1 | . . 1 . Drone Launches . | . . . . Drone Recoveries . | . . . . Exploration | -11 -10 -10 -10 ------------- Run | Yrd Mat Min Sub Turns Passed 1711 | 83 107 644 877 Spaces Moved 959 | 47 66 392 454 Core 120 | 5 . . 115 Treads 839 | 42 66 392 339 Legs . | . . . . Wheels . | . . . . Hover . | . . . . Flight . | . . . . Fastest Speed 50 | 50 160 160 150 Average Speed 166 | 148 160 160 174 Slowest Speed 250 | 160 160 160 250 Overloaded Moves . | . . . . Propulsion Burnouts . | . . . . Robots Hopped . | . . . . Potential Cave-ins . | . . . . Cave-ins Triggered . | . . . . Exploration Rate (%) 30 | 3 19 78 20 Regions Visited 3 Branch Regions 2 Pre-discovered Areas . | . . . . Known Exits Taken . | . . . . Unknown Exits Taken 3 | 1 1 1 . Scrap Searched . | . . . . Spaces Dug . | . . . . Terrain Destroyed 50 | . . 34 16 Melee . | . . . . Projectile . | . . . . AOE 50 | . . 34 16 Terrain Rammed . | . . . . Walls Destroyed . | . . . . Machines Disabled . | . . . . Actions | -11 -10 -10 -10 --------- Run | Yrd Mat Min Sub Total 1031 | 60 68 402 501 Wait 1 | . . . 1 Move 956 | 46 65 391 454 Hop . | . . . . Pick Up 22 | 8 2 4 8 Fast Attach . | . . . . Attach 11 | 6 1 . 4 Detach . | . . . . Swap 5 | . . 3 2 Drop 4 | . . 1 3 Fire 32 | . . 3 29 Melee . | . . . . Ram . | . . . . Kick . | . . . . Crush . | . . . . Escape Stasis . | . . . . Rewire . | . . . . Trap . | . . . . Miscellaneous . | . . . . Route ------- -11/Scrapyard -10/Materials -10/Mines (discovered 2 exits: [*Mat] / [*Sub]) -10/Subcaves (discovered 1 exit: [*Rec]) History --------- Turn | Location | Event 24 | -11/Scrapyard | Discovered new exit (range 16) 84 | -11/Scrapyard | Entered Materials 166 | -10/Materials | Discovered new exit (range 12) 191 | -10/Materials | Entered Mines 318 | -10/Mines | Build established: Mutant 701 | -10/Mines | Learned Materials stockpile data 747 | -10/Mines | Received a Mining Laser from a helpful Derelict 789 | -10/Mines | Discovered new exit (range 10) 832 | -10/Mines | Discovered new exit (range 3) 835 | -10/Mines | Entered Subcaves 835 | -10/Subcaves | Accompanied by 1 ally 1261 | -10/Subcaves | Discovered new exit (range 15) 1405 | -10/Subcaves | Ambushed by angry Subdweller bent on revenge 1462 | -10/Subcaves | Core integrity fell below 50% 1707 | -10/Subcaves | Core integrity fell below 20% 1712 | -10/Subcaves | Destroyed by AL-1UZ(R) with Subdweller Machine Gun Last Messages --------------- Heat Sink. Acquired Sub. Laser. Subatomizers dissect the Corrupted Disposable Heat Sink, destroying it. VF-1Y1(R): "SUBMAD!" Riot Gun destroyed. VF-1Y1(R) destroyed. Acquired 39 matter. Acquired Sensor Array. Acquired Corrupted Disposable Heat Sink. Subatomizers dissect the Corrupted Sub. Optics. Dropped Lgt. Ion Engine. Acquired Sub. Power Source. Dropped Corrupted Disposable Heat Sink. Dropped Scrap Shield Fragment. Acquired Lgt. Ion Engine. Subatomizers dissect the Corrupted Sub. Optics. 3L-4OV(O) collects matter. Assault Rifle destroyed. Map ----- +----------------------------------------------------+ | ?????????????????????????????????????????????????? | | ?????????????????????????????????????????????????? | | ?????????????????????????????????????????????????? | | ?????????????????????????????????????????????????? | | ?????????????????????????????????????????????????? | | ???????????????????????????#####?????????????????? | | ???????##?##?###??###?????## ########??????????# | | ???????# # ## #### ####### ## ##??????## | | ????????""" "" * ## ## #?????## | | ??????? """"""& ! ## #???? ##???## | | ?????????#"""! ## ##????? #??## " " | | ?????????############ #?###### #???# ""# | | ??????????????## #### #?# # ##### "# | | ??????????????# ### "###### ! " | | ??????????????# ## "### | | ??????????????# # ## | | ??????????????## ###### ## | | ???????????????# ####### ####????## | | ??????????????## ### ##?????###????????## | | ?????????????## #?####?####?????????????##" | | ?????????????# ##??#### ## # ## #?????#### | | ?????????????# # #?## O % #???? | | ?????????????## ##?# RR ### # #??? | | ?????????????# # #?## ###????####??????????? | | ?????????????# ## ### #????????????????????? | | ?????????????## @ #????????????????????? | | ??????????????# #????????????????????? | | ?????????????# # # # #### ##????????????????????? | | ?????????????##########??###?????????????????????? | | ?????????????????????????????????????????????????? | | ?????????????????????????????????????????????????? | | ?????????????????????????????????????????????????? | | ?????????????????????????????????????????????????? | | ?????????????????????????????????????????????????? | | ?????????????????????????????????????????????????? | | ?????????????????????????????????????????????????? | | ?????????????????????????????????????????????????? | | ?????????????????????????????????????????????????? | | ?????????????????????????????????????????????????? | | ?????????????????????????????????????????????????? | | ?????????????????????????????????????????????????? | | ?????????????????????????????????????????????????? | | ?????????????????????????????????????????????????? | | | | | | | | | | | | | | | +----------------------------------------------------+ Best States ------------- Heat Dissipation 25 Energy Generation 15 Energy Capacity 250 Matter Stores 176 Matter Capacity 300 Sight Range 16 Terrain Scan Density 10 Utility Shielding 33 Evasion (%) 40 Recoil Reduction 2 Item Schematics ----------------- None Robot Schematics ------------------ None Fabricated ------------ Nothing Repaired ---------- Nothing Alien Tech Used ----------------- None Achievements -------------- None Challenges ------------ None Game ------ Seed GunAngularRail Manual? 0 Play Time 00:07:53 Cumulative 10.3 hours Start 2025.05.17 @ 19:56:38 End 2025.05.17 @ 20:03:55 Sessions 1 Manual Loads 0 Difficulty Rogue Special Mode None Game No. 41 Rogue 41 Adventurer 0 Explorer 0 Win Type - Total 0 Types 0/0/0/0/0/0/0/0/0/0 Lore% 6 Gallery% 16 Achievement% 18 Wizard Run 0 Options --------- Layout 1 ASCII 0 Keyboard 0 Movement Mouse Keybinds 0 Fullscreen 1 Font 24/Smallcaps Map View 50x35 Zoom Use 0% Tactical HUD 0 Map Filters NONE Filters NONE Steam 1 RUN: db4d7757-54de-4944-aa14-5804d929701e